bitfinex/quotes_BTCUSD_20251124
["timestamp","ask_amount","ask_price","bid_price","bid_amount"]
[1763995515946,0.00021728,85879.0,85841.0,0.01935]
[1763995515947,0.00021728,85879.0,85846.0,0.05210249]
[1763995516166,0.00021728,85879.0,85861.0,2.0]
[1763995516400,0.00021728,85879.0,85869.0,0.05210249]
[1763995516649,0.00021728,85879.0,85870.0,0.00796]
[1763995516871,0.001,85876.0,85870.0,0.00796]
[1763995517082,0.001,85876.0,85874.0,0.10433271]
[1763995517289,0.00021728,85879.0,85875.0,0.01316427]
[1763995517517,0.00021728,85879.0,85874.0,0.10433271]
[1763995517740,0.00021728,85879.0,85875.0,0.07145249]
[1763995517998,0.01806043,85895.0,85889.0,2.0]
[1763995518207,0.10378671,85947.0,85895.0,0.05210249]
[1763995518419,0.10433271,85922.0,85897.0,2.0]
[1763995518636,0.73725879,85930.0,85898.0,0.00796]
[1763995518849,2.08551,85929.0,85898.0,0.00796]
[1763995519074,0.323,85927.0,85898.0,0.00796]
[1763995519298,0.10433271,85908.0,85898.0,0.00796]
[1763995519521,2.0,85920.0,85898.0,0.00796]
[1763995519745,2.0,85930.0,85898.0,0.00796]
[1763995519956,0.323,85922.0,85898.0,0.00796]
[1763995520162,0.10433271,85921.0,85898.0,0.00796]
[1763995520380,0.10433271,85908.0,85898.0,0.00796]
[1763995520599,0.10433271,85906.0,85898.0,0.00796]
[1763995521061,0.10433271,85919.0,85898.0,0.00796]
[1763995521293,0.323,85916.0,85898.0,0.00796]
[1763995521765,0.10433271,85915.0,85898.0,0.00796]
[1763995521984,0.323,85913.0,85898.0,0.00796]
[1763995522200,0.10433271,85915.0,85850.0,0.75725877]
[1763995522201,0.42733271,85901.0,85865.0,0.02329237]
[1763995522417,0.323,85901.0,85871.0,0.10433271]
[1763995522852,0.10433271,85919.0,85872.0,0.02417047]
[1763995523081,0.08551,85942.0,85873.0,0.05210249]
[1763995523288,0.01827671,85947.0,85878.0,0.05210249]
[1763995523289,0.10433271,85917.0,85878.0,0.05210249]
[1763995523491,0.10472364,85921.0,85882.0,0.05210249]
[1763995523702,0.00039093,85921.0,85887.0,0.05210249]
[1763995523917,0.00039093,85921.0,85890.0,0.78936128]
[1763995524133,0.00039093,85921.0,85905.0,0.01164076]
[1763995524400,0.00039093,85921.0,85914.0,0.05210249]
[1763995524401,9.3e-07,85921.0,85914.0,0.05210249]
[1763995524621,0.01827671,85947.0,85921.0,0.05210249]
[1763995524833,0.01839393,85947.0,85923.0,0.05210249]
[1763995525081,0.01839393,85947.0,85922.0,0.4]
[1763995525082,0.00011722,85947.0,85933.0,0.10433271]
[1763995525300,2.0,85945.0,85915.0,0.00796]
[1763995525519,0.323,85927.0,85915.0,0.00796]
[1763995525954,0.323,85925.0,85915.0,0.00796]
[1763995526386,0.10433271,85924.0,85915.0,0.00796]
[1763995526592,0.323,85925.0,85915.0,0.00796]
[1763995526809,0.323,85923.0,85915.0,0.00796]
[1763995527036,0.323,85921.0,85873.0,0.01]
[1763995527259,0.323,85921.0,85871.0,0.10433271]
[1763995527260,0.323,85919.0,85874.0,0.01940227]
[1763995527478,0.00102781,85899.0,85884.0,0.10433271]
[1763995527700,0.323,85919.0,85885.0,0.01]
[1763995527955,0.323,85909.0,85874.0,0.01940227]
[1763995528225,0.323,85896.0,85874.0,0.00792]
[1763995528869,0.08551,85895.0,85874.0,0.00792]
[1763995529104,0.323,85889.0,85874.0,0.00792]
[1763995529331,0.08551,85895.0,85874.0,0.00792]
[1763995529332,0.323,85883.0,85874.0,0.00792]
[1763995529774,0.323,85881.0,85874.0,0.00792]
[1763995530206,0.08551,85912.0,85874.0,0.00792]
[1763995530419,0.323,85894.0,85874.0,0.00792]
[1763995530638,0.323,85892.0,85874.0,0.00792]
[1763995530871,0.18984271,85924.0,85874.0,0.00792]
[1763995531093,0.18984271,85924.0,85878.0,0.05210249]
[1763995531317,0.04118,85937.0,85898.0,0.10433271]
[1763995531536,0.04118,85937.0,85899.0,0.00792]
[1763995531739,0.5,85929.0,85900.0,0.10433271]
[1763995531996,0.04118,85937.0,85900.0,0.10433271]
[1763995531997,0.10433271,85928.0,85900.0,0.10433271]
[1763995532223,0.10433271,85928.0,85901.0,0.02328261]
[1763995532444,0.08551,85926.0,85899.0,0.00792]
[1763995532659,0.08551,85926.0,85885.0,0.10433271]
[1763995532660,0.323,85899.0,85849.0,0.01682]
[1763995532881,0.323,85899.0,85856.0,0.10433271]
[1763995532882,0.10433271,85886.0,85856.0,0.10433271]
[1763995533107,0.42733271,85899.0,85856.0,0.10433271]
[1763995533108,0.323,85879.0,85856.0,0.01222527]
[1763995533329,0.323,85879.0,85850.0,0.00792]
[1763995533555,0.323,85879.0,85857.0,0.02329454]
[1763995533765,0.44969,85879.0,85850.0,0.00792]
[1763995533979,0.323,85863.0,85850.0,0.00792]
[1763995534397,0.10433271,85851.0,85850.0,0.00831093]
[1763995534609,0.323,85859.0,85850.0,0.00831093]
[1763995534823,0.42733271,85851.0,85850.0,0.00831093]
[1763995535039,0.44860372,85851.0,85850.0,0.00039093]
[1763995535261,0.44860372,85851.0,85780.0,0.7589165]
[1763995535262,0.323,85848.0,85821.0,0.00792]
[1763995535478,0.10433271,85832.0,85821.0,0.00803728]
[1763995535694,0.34427101,85831.0,85821.0,0.00803728]
[1763995535902,0.34427101,85831.0,85772.0,0.007512]
[1763995535903,0.323,85821.0,85793.0,0.00792]
[1763995536135,0.323,85819.0,85793.0,0.00831132]
[1763995536363,0.02127101,85818.0,85793.0,0.00831132]
[1763995536592,2.0,85815.0,85793.0,0.00116282]
[1763995536818,0.01999998,85850.0,85794.0,0.0037815]
[1763995536819,2.0,85850.0,85794.0,0.0037815]
[1763995537050,0.001,85831.0,85803.0,0.09014255]
[1763995537272,0.02136848,85830.0,85806.0,0.01]
[1763995537496,0.02136848,85829.0,85807.0,0.07411179]
[1763995537703,0.02136848,85828.0,85816.0,0.10433271]
[1763995537912,0.02139198,85827.0,85817.0,0.02538734]
[1763995538134,0.02139194,85826.0,85817.0,0.00792]
[1763995538360,0.001,85831.0,85817.0,0.00792]
[1763995538361,0.02139194,85825.0,85817.0,0.00792]
[1763995538570,0.02139194,85824.0,85817.0,0.00792]
[1763995538795,0.01999998,85880.0,85817.0,0.00792]
[1763995538796,0.02139194,85823.0,85817.0,0.00792]
[1763995539021,2.0,85863.0,85825.0,0.01]
[1763995539243,0.02141657,85862.0,85826.0,0.01757324]
[1763995539465,0.10433271,85851.0,85825.0,0.00621025]
[1763995539706,1.08167536,85850.0,85818.0,0.10433271]
[1763995539939,1.08167536,85850.0,85817.0,0.00892]
[1763995539940,2.02141657,85849.0,85819.0,0.01787549]
[1763995540156,0.10472347,85851.0,85819.0,0.01787549]
[1763995540157,0.02141657,85848.0,85820.0,0.05210249]
[1763995540369,0.02141657,85847.0,85826.0,0.01]
[1763995540582,0.02141657,85846.0,85822.0,0.01]
[1763995540799,0.02141657,85845.0,85827.0,0.01303312]
[1763995541026,0.02141657,85844.0,85832.0,0.01]
[1763995541246,0.00039076,85851.0,85837.0,0.10433271]
[1763995541459,0.00039076,85851.0,85838.0,0.04398308]
[1763995541460,0.02143384,85850.0,85838.0,0.04398308]
[1763995541677,0.00039076,85851.0,85842.0,0.05210249]
[1763995541880,0.00039076,85851.0,85843.0,0.01963055]
[1763995542101,0.00039076,85851.0,85838.0,0.00792]
[1763995542348,0.02143279,85850.0,85838.0,0.00792]
[1763995542560,0.02143279,85849.0,85838.0,0.00792]
[1763995542776,0.02143279,85848.0,85838.0,0.00792]
[1763995542987,0.00039076,85851.0,85838.0,0.00792]
[1763995542988,0.10433271,85845.0,85842.0,0.001]
[1763995543195,0.02143279,85844.0,85842.0,0.001]
[1763995543413,0.02142373,85843.0,85838.0,0.00792]
[1763995543624,0.323,85841.0,85838.0,0.00792]
[1763995543878,0.0409,85839.0,85789.0,0.10433271]
[1763995544092,0.02142373,85838.0,85804.0,0.10433271]
[1763995544308,0.323,85840.0,85804.0,0.10433271]
[1763995544309,0.02142373,85837.0,85805.0,0.01590674]
[1763995544535,0.02142373,85836.0,85818.0,0.10433271]
[1763995544740,0.02142373,85835.0,85819.0,0.02505638]
[1763995544949,0.0409,85852.0,85820.0,0.00792]
[1763995544950,2.73725879,85850.0,85820.0,0.00792]
[1763995545174,0.07926,85869.0,85820.0,0.11225271]
[1763995545386,0.001,85843.0,85829.0,0.01]
[1763995545605,0.001,85843.0,85833.0,0.10433271]
[1763995545824,0.001,85843.0,85821.0,0.06332776]
[1763995545825,0.11937095,85866.0,85821.0,0.06332776]
[1763995546039,0.12764965,85866.0,85833.0,0.10433271]
[1763995546295,0.12764965,85866.0,85823.0,0.01]
[1763995546522,0.73725879,85860.0,85824.0,0.06545029]
[1763995546732,0.01749455,85859.0,85824.0,0.06545029]
[1763995546937,0.01749455,85859.0,85825.0,0.01669054]
[1763995547353,0.10433271,85868.0,85833.0,0.10433271]
[1763995547596,0.5,85882.0,85837.0,0.01]
[1763995547821,0.02357396,85875.0,85846.0,0.10433271]
[1763995548040,0.07906,85867.0,85823.0,0.4]
[1763995548253,0.323,85839.0,85790.0,0.01043327]
[1763995548471,0.73725879,85820.0,85760.0,0.00999999]
[1763995548691,0.73725879,85790.0,85740.0,0.01999998]
[1763995548906,0.73725879,85790.0,85757.0,0.01486571]
[1763995548907,2.0,85789.0,85757.0,0.01486571]
[1763995549131,2.0,85789.0,85757.0,0.00402949]
[1763995549132,0.73725879,85780.0,85757.0,0.00402949]
[1763995549346,2.0,85787.0,85757.0,0.00402949]
[1763995549575,0.11762,85803.0,85758.0,0.10433271]
[1763995549788,0.00039028,85787.0,85759.0,0.03415738]
[1763995550005,0.00039028,85787.0,85760.0,0.00792]
[1763995550231,0.00039028,85787.0,85761.0,0.0194078]
[1763995550462,0.00039028,85787.0,85772.0,0.323]
[1763995550678,0.00039028,85787.0,85776.0,0.01]
[1763995550886,0.00039028,85787.0,85777.0,0.01342499]
[1763995551096,0.00039028,85787.0,85778.0,0.01915955]
[1763995551365,0.00039028,85787.0,85778.0,0.00792]
[1763995551574,0.00039028,85787.0,85779.0,0.02331572]
[1763995551809,0.00039028,85787.0,85779.0,0.0154778]
[1763995552016,0.00039028,85787.0,85779.0,0.00751011]
[1763995552241,0.00039028,85787.0,85785.0,0.10433271]
[1763995552448,0.00039028,85787.0,85786.0,0.03374709]
[1763995552663,0.00039028,85787.0,85786.0,0.02331382]
[1763995552932,0.73725879,85830.0,85786.0,0.02331382]
[1763995552933,0.07906,85840.0,85796.0,0.01165555]
[1763995553173,0.10433271,85850.0,85814.0,0.10433271]
[1763995553395,0.02331694,85849.0,85815.0,0.04165921]
[1763995553598,0.02331694,85869.0,85818.0,0.05210249]
[1763995553805,0.10433271,85860.0,85822.0,0.01]
[1763995554026,0.02331694,85859.0,85818.0,0.05210249]
[1763995554280,0.10433271,85847.0,85819.0,0.07244159]
[1763995554500,2.0,85845.0,85820.0,0.0225165]
[1763995554710,0.02331694,85844.0,85820.0,0.0225165]
[1763995554917,0.02331694,85844.0,85820.0,0.02263382]
[1763995555177,0.01574624,85845.0,85821.0,0.01574624]
[1763995555816,0.10433271,85833.0,85820.0,0.00011732]
[1763995556028,0.02331694,85832.0,85820.0,0.00011732]
[1763995556257,0.10433271,85847.0,85821.0,0.10433271]
[1763995556482,0.11369158,85846.0,85822.0,0.02213433]
[1763995556703,0.12764965,85846.0,85822.0,0.10433271]
[1763995556909,0.02143993,85845.0,85823.0,0.12395045]
[1763995557134,0.02143993,85845.0,85820.0,0.00011732]
[1763995557135,0.73725879,85833.0,85820.0,0.00011732]
[1763995557356,2.0,85831.0,85820.0,0.00011732]
[1763995557579,2.0,85829.0,85820.0,0.00011732]
[1763995557801,2.0,85827.0,85820.0,0.00011732]
[1763995558050,2.0,85825.0,85820.0,0.00011732]
[1763995558278,0.07906,85828.0,85820.0,0.00011732]
[1763995558279,0.10433271,85821.0,85820.0,0.00011732]
[1763995558498,0.12577264,85821.0,85820.0,0.00011732]
[1763995558709,0.20483264,85821.0,85820.0,0.00011732]
[1763995558920,0.323,85818.0,85778.0,0.0088]
[1763995559145,0.323,85818.0,85756.0,0.00892]
[1763995559146,0.10433271,85802.0,85791.0,0.00788]
[1763995559351,2.0,85800.0,85769.0,0.00892]
[1763995559585,2.0,85798.0,85778.0,0.00788]
[1763995559802,0.02143993,85797.0,85778.0,0.00788]
[1763995560013,0.02143993,85796.0,85778.0,0.00788]
[1763995560234,0.02143993,85795.0,85778.0,0.00788]
[1763995560460,2.323,85787.0,85730.0,0.00892]
[1763995560741,0.323,85776.0,85746.0,0.00788]
[1763995560968,0.323,85774.0,85746.0,0.00788]
[1763995561188,0.02144138,85773.0,85747.0,0.01536982]
[1763995561403,0.2494,85817.0,85758.0,0.11325271]
[1763995561404,0.02144138,85772.0,85758.0,0.11325271]
[1763995561617,0.03856,85815.0,85759.0,0.40219594]
[1763995561618,0.02144138,85771.0,85759.0,0.40219594]
[1763995561840,0.02144138,85770.0,85762.0,0.05210249]
[1763995562076,0.02144138,85769.0,85758.0,0.00039028]
[1763995562292,0.02144138,85768.0,85758.0,0.00039028]
[1763995562509,0.10433271,85759.0,85758.0,0.00039028]
[1763995562724,0.323,85756.0,85722.0,0.00788]
[1763995562938,0.03856,85747.0,85722.0,0.00799726]
[1763995563149,2.0,85744.0,85722.0,0.00011726]
[1763995563390,0.02144138,85743.0,85722.0,0.00011726]
[1763995563605,0.02144138,85742.0,85736.0,0.10433271]
[1763995563822,0.02144138,85741.0,85737.0,0.1275949]
[1763995564039,0.02144138,85740.0,85739.0,0.05210249]
[1763995564259,0.02144138,85740.0,85739.0,0.06210249]
[1763995564713,2.0,85800.0,85753.0,0.05210249]
[1763995564922,0.10433271,85788.0,85756.0,0.10433271]
[1763995565132,2.0,85787.0,85757.0,0.01831327]
[1763995565351,2.07906,85787.0,85757.0,0.00788]
[1763995565587,2.0,85785.0,85757.0,0.00788]
[1763995565835,0.10433271,85788.0,85757.0,0.00788]
[1763995565836,0.323,85782.0,85757.0,0.00788]
[1763995566059,0.00039035,85785.0,85758.0,0.10433271]
[1763995566280,0.00039035,85785.0,85759.0,0.40168574]
[1763995566500,0.00039035,85785.0,85761.0,0.05210249]
[1763995566714,0.00039035,85785.0,85779.0,0.05210249]
[1763995566934,0.00039035,85785.0,85780.0,0.00788]
[1763995567420,0.07906,85840.0,85784.0,0.10433271]
[1763995567638,0.0001171,85840.0,85810.0,0.10433271]
[1763995567852,0.0001171,85840.0,85839.0,0.01395]
[1763995568062,0.0001171,85840.0,85839.0,0.02183]
[1763995568267,0.0001171,85840.0,85839.0,0.00788]
[1763995568736,0.0001171,85840.0,85839.0,0.02183]
[1763995568945,0.0001171,85840.0,85839.0,0.00788]
[1763995569156,0.0001171,85840.0,85819.0,0.01395]
[1763995569363,0.0001171,85840.0,85823.0,0.05210249]
[1763995569568,0.0001171,85840.0,85825.0,0.05210249]
[1763995569789,0.0001171,85840.0,85839.0,0.10433271]
[1763995570016,0.0001171,85840.0,85839.0,0.00788]
[1763995570228,0.0001171,85840.0,85820.0,0.01]
[1763995570429,0.0001171,85840.0,85827.0,0.10433271]
[1763995570646,0.0001171,85840.0,85821.0,0.00788]
[1763995570854,0.0001171,85840.0,85823.0,0.10433271]
[1763995571082,0.0001171,85840.0,85839.0,0.001]
[1763995571314,0.0001171,85840.0,85839.0,0.00888]
[1763995571528,0.0001171,85840.0,85839.0,0.00788]
[1763995571737,0.03856,85890.0,85839.0,0.00788]
[1763995571738,0.18339271,85886.0,85839.0,0.01475]
[1763995571946,0.00999999,85920.0,85843.0,0.05210249]
[1763995571947,0.00414414,85867.0,85843.0,0.05210249]
[1763995572153,0.00414414,85867.0,85851.0,0.01]
[1763995572362,0.00414414,85867.0,85852.0,0.01]
[1763995572576,0.00414414,85867.0,85859.0,0.01]
[1763995572785,0.00414414,85867.0,85861.0,0.05210249]
[1763995572987,4.14e-06,85867.0,85866.0,0.1664352]
[1763995573202,0.02909988,85911.0,85867.0,0.05210249]
[1763995573463,0.5,85914.0,85867.0,0.05210249]
[1763995573464,0.00079069,85880.0,85877.0,0.01]
[1763995573650,2.0,85930.0,85890.0,0.01]
[1763995573866,2.0,85920.0,85880.0,0.05210249]
[1763995574083,0.10433271,85921.0,85878.0,0.00788]
[1763995574084,0.10433271,85908.0,85878.0,0.00788]
[1763995574296,0.00044976,85881.0,85878.0,0.01788]
[1763995574518,0.07672,85935.0,85880.0,0.05210249]
[1763995574735,0.10433271,85931.0,85882.0,0.05210249]
[1763995574950,0.02909344,85930.0,85889.0,0.05210249]
[1763995575193,0.02909344,85930.0,85880.0,0.00596]
[1763995575194,0.02909344,85930.0,85899.0,0.05210249]
[1763995575403,0.0004,85950.0,85892.0,0.01164252]
[1763995575404,2.0,85946.0,85909.0,0.05210249]
[1763995575610,0.0001172,85930.0,85910.0,0.00621025]
[1763995575831,0.0001172,85930.0,85900.0,0.01384]
[1763995575832,0.0001172,85930.0,85900.0,0.00788]
[1763995576110,0.10433271,85922.0,85901.0,0.00788]
[1763995576320,0.02909649,85921.0,85901.0,0.00788]
[1763995576535,0.01890862,85921.0,85901.0,0.00788]
[1763995576737,0.04023189,85920.0,85901.0,0.00788]
[1763995576938,0.05043244,85919.0,85902.0,0.00788]
[1763995577147,0.10433271,85909.0,85902.0,0.00788]
[1763995577369,0.05043616,85908.0,85902.0,0.00788]
[1763995577564,0.07672,85921.0,85902.0,0.00788]
[1763995577565,0.02133527,85907.0,85902.0,0.00788]
[1763995577798,0.02133527,85906.0,85902.0,0.00788]
[1763995578073,0.02133527,85905.0,85902.0,0.00788]
[1763995578307,0.02274659,85918.0,85902.0,0.00788]
[1763995578477,0.02131256,85917.0,85902.0,0.00788]
[1763995578719,0.10433271,85922.0,85902.0,0.00788]
[1763995578720,0.03591913,85916.0,85902.0,0.00788]
[1763995578894,0.02131256,85915.0,85902.0,0.00788]
[1763995579144,0.10433271,85909.0,85878.0,0.0053586]
[1763995579345,0.10433271,85896.0,85879.0,0.00788]
[1763995579554,0.02131256,85895.0,85879.0,0.00788]
[1763995579764,0.02131256,85895.0,85878.0,0.0053586]
[1763995579765,0.00038552,85879.0,85878.0,0.0053586]
[1763995580177,0.00038552,85879.0,85874.0,0.00253041]
[1763995580403,0.10433271,85894.0,85874.0,0.00253041]
[1763995580612,0.10433271,85894.0,85876.0,0.01]
[1763995580613,0.02130548,85893.0,85876.0,0.01]
[1763995580873,0.00011714,85894.0,85888.0,0.10433271]
[1763995581135,0.00011714,85894.0,85877.0,0.01228231]
[1763995581312,0.00011714,85894.0,85874.0,0.00253041]
[1763995581518,0.021304,85893.0,85875.0,0.10433271]
[1763995581728,0.00011714,85894.0,85874.0,0.00253041]
[1763995582535,0.02922278,85894.0,85874.0,0.00253041]
[1763995582818,0.66302471,85890.0,85844.0,0.00668525]
[1763995583032,0.03899,85858.0,85812.0,0.00596]
[1763995583226,0.03899,85858.0,85837.0,0.00784]
[1763995583426,0.323,85865.0,85836.0,0.00784]
[1763995583824,0.11571,85876.0,85836.0,0.00784]
[1763995583825,0.10433271,85863.0,85838.0,0.10433271]
[1763995584153,0.10433271,85860.0,85839.0,0.02652541]
[1763995584468,0.11571,85876.0,85839.0,0.02652541]
[1763995584469,0.03899,85876.0,85839.0,0.02652541]
[1763995584597,0.5,85892.0,85851.0,0.10433271]
[1763995584811,2.0,85905.0,85865.0,0.01]
[1763995585024,2.0,85905.0,85864.0,0.10433271]
[1763995585025,0.53349844,85904.0,85866.0,0.02003762]
[1763995585227,0.10433271,85896.0,85867.0,0.01243703]
[1763995585427,0.0291053,85895.0,85867.0,0.01243703]
[1763995585810,0.00025702,85875.0,85866.0,0.00784]
[1763995586019,0.00025702,85875.0,85866.0,0.00823069]
[1763995586657,0.00025702,85875.0,85867.0,0.0152949]
[1763995587089,0.00025702,85875.0,85866.0,0.00823069]
[1763995589174,0.00025702,85875.0,85867.0,0.10433271]
[1763995589385,0.00025702,85875.0,85868.0,0.03714506]
[1763995589824,2.0,85921.0,85883.0,0.01]
[1763995589997,2.0,85908.0,85884.0,0.00784]
[1763995590219,0.02910123,85907.0,85884.0,0.00784]
[1763995590421,0.10433271,85896.0,85884.0,0.00784]
[1763995590622,0.02910123,85907.0,85884.0,0.00784]
[1763995590848,0.03899,85885.0,85867.0,0.001]
[1763995590981,0.10433271,85883.0,85867.0,0.00784]
[1763995591609,0.10433271,85883.0,85866.0,0.00039069]
[1763995591610,0.66302471,85880.0,85866.0,0.00039069]
[1763995591814,0.323,85877.0,85810.0,0.10433271]
[1763995592016,0.323,85857.0,85820.0,0.00784]
[1763995592242,2.0,85855.0,85820.0,0.00784]
[1763995592442,2.0,85853.0,85821.0,0.01531786]
[1763995592685,0.02132006,85852.0,85821.0,0.01531786]
[1763995592902,0.10433271,85839.0,85820.0,0.00784]
[1763995593308,0.02138218,85838.0,85820.0,0.00784]
[1763995593460,0.02138218,85837.0,85820.0,0.00784]
[1763995593668,0.02138218,85836.0,85820.0,0.00784]
[1763995593876,0.10433271,85826.0,85808.0,0.00784]
[1763995594133,0.10433271,85826.0,85808.0,0.00795723]
[1763995594312,0.00999999,85860.0,85808.0,0.00795723]
[1763995594313,0.02137957,85825.0,85809.0,0.10433271]
[1763995594480,0.07672,85854.0,85810.0,0.01122899]
[1763995594481,0.323,85845.0,85810.0,0.01122899]
[1763995594662,0.10433271,85835.0,85810.0,0.01122899]
[1763995595039,0.02140932,85834.0,85810.0,0.01122899]
[1763995595239,0.12574203,85833.0,85810.0,0.01122899]
[1763995595363,0.12574203,85833.0,85808.0,0.00795723]
[1763995595364,0.02140932,85832.0,85808.0,0.00795723]
[1763995595564,0.323,85816.0,85765.0,0.00402894]
[1763995595787,2.0,85790.0,85765.0,0.00441929]
[1763995595993,0.323,85787.0,85765.0,0.00441929]
[1763995596226,0.66302471,85775.0,85765.0,0.00441929]
[1763995596425,0.03899,85766.0,85765.0,0.00441929]
[1763995596628,0.06039932,85766.0,85765.0,0.00441929]
[1763995596854,0.02140932,85766.0,85765.0,0.00441929]
[1763995597302,0.02138637,85766.0,85765.0,0.00441929]
[1763995597677,0.001,85775.0,85765.0,0.00441929]
[1763995597884,0.12572104,85774.0,85765.0,0.00441929]
[1763995598109,2.0,85772.0,85765.0,0.00441929]
[1763995598247,0.10433271,85774.0,85765.0,0.00441929]
[1763995598248,0.001,85766.0,85765.0,0.00441929]
[1763995598686,0.09907056,85766.0,85765.0,0.00441929]
[1763995599125,0.02235056,85766.0,85765.0,0.00441929]
[1763995599344,0.02135056,85766.0,85765.0,0.00441929]
[1763995599509,0.09807056,85766.0,85765.0,0.00441929]
[1763995600308,0.09807056,85766.0,85740.0,0.00784]
[1763995600309,2.0,85765.0,85740.0,0.00784]
[1763995600536,0.323,85773.0,85740.0,0.0079571]
[1763995600709,0.07672,85800.0,85754.0,0.10433271]
[1763995600906,2.0,85809.0,85767.0,0.10433271]
[1763995601107,0.10433271,85804.0,85768.0,0.11213271]
[1763995601312,2.0,85802.0,85769.0,0.01401224]
[1763995601517,2.0,85832.0,85785.0,0.01165704]
[1763995601731,2.0,85846.0,85810.0,0.10433271]
[1763995601933,0.66302471,85860.0,85810.0,0.10433271]
[1763995601934,2.0,85854.0,85813.0,0.05210249]
[1763995602133,0.00039076,85846.0,85823.0,0.01]
[1763995602543,0.00039076,85846.0,85827.0,0.01]
[1763995602762,0.00039076,85846.0,85831.0,0.05210249]
[1763995602978,0.00039076,85846.0,85840.0,0.01]
[1763995603213,0.00039076,85846.0,85841.0,0.0078]
[1763995603633,0.00039076,85846.0,85815.0,0.323]
[1763995603634,0.00039076,85846.0,85842.0,0.0078]
[1763995603885,0.00039076,85846.0,85839.0,0.0078]
[1763995604657,0.00039076,85846.0,85841.0,0.001]
[1763995604809,0.00039076,85846.0,85839.0,0.0038]
[1763995606308,0.00039076,85846.0,85841.0,0.10433271]
[1763995606543,0.00025699,85883.0,85856.0,0.0116474]
[1763995606763,0.0003742,85883.0,85875.0,0.05210249]
[1763995607183,0.0003742,85883.0,85876.0,0.0078]
[1763995607396,0.0003742,85883.0,85877.0,0.0078]
[1763995607630,0.0003742,85883.0,85882.0,0.10433271]
[1763995608054,0.0003742,85883.0,85882.0,0.0078]
[1763995608458,0.0003742,85883.0,85882.0,0.0178]
[1763995608890,0.0003742,85883.0,85864.0,0.4]
[1763995609103,0.10433271,85882.0,85841.0,0.10433271]
[1763995609334,0.0003742,85883.0,85863.0,0.10433271]
[1763995609547,0.0003742,85883.0,85864.0,0.0178]
[1763995609758,0.0003742,85883.0,85877.0,0.10433271]
[1763995609964,0.0003742,85883.0,85877.0,0.10533271]
[1763995610382,0.0003742,85883.0,85877.0,0.10433271]
[1763995610708,0.0013742,85883.0,85864.0,0.0078]
[1763995610856,0.0013742,85883.0,85863.0,0.10433271]
[1763995611061,0.0013742,85883.0,85854.0,0.00585]
[1763995611272,2.323,85881.0,85836.0,0.00585]
[1763995611532,0.323,85877.0,85823.0,0.00585]
[1763995611719,0.323,85873.0,85826.0,0.02310521]
[1763995611884,0.98602471,85870.0,85826.0,0.0078]
[1763995612252,0.323,85856.0,85827.0,0.01531154]
[1763995612417,0.02911886,85855.0,85828.0,0.01332942]
[1763995612624,0.10433271,85849.0,85810.0,0.11018271]
[1763995612825,0.323,85846.0,85797.0,0.00585]
[1763995613043,2.0,85844.0,85797.0,0.00585]
[1763995613285,0.323,85839.0,85798.0,0.0078]
[1763995613572,0.323,85837.0,85802.0,0.10433271]
[1763995613714,0.323,85828.0,85803.0,0.01226174]
[1763995614555,0.002,85844.0,85815.0,0.10433271]
[1763995614758,0.002,85844.0,85817.0,0.10433271]
[1763995615161,0.002,85844.0,85818.0,0.0211719]
[1763995615369,0.323,85848.0,85830.0,0.10433271]
[1763995615574,0.10433271,85866.0,85830.0,0.10433271]
[1763995615575,0.323,85865.0,85830.0,0.10433271]
[1763995615783,0.04250805,85864.0,85819.0,0.01918046]
[1763995615998,0.323,85852.0,85819.0,0.01918046]
[1763995616210,0.323,85852.0,85830.0,0.10433271]
[1763995616412,0.10433271,85866.0,85831.0,0.01855949]
[1763995616645,0.03689,85914.0,85844.0,0.01164903]
[1763995616871,0.07007,85908.0,85871.0,0.10433271]
[1763995617077,0.11972364,85913.0,85847.0,0.4]
[1763995617078,0.323,85899.0,85847.0,0.4]
[1763995617279,0.03689,85889.0,85848.0,0.0078]
[1763995617485,0.01539093,85888.0,85849.0,0.0078]
[1763995617695,0.01539093,85888.0,85859.0,0.10433271]
[1763995617905,0.01539093,85888.0,85860.0,0.02329373]
[1763995618126,0.0003742,85883.0,85861.0,0.01276264]
[1763995618342,0.0003742,85883.0,85862.0,0.02329319]
[1763995618995,0.0003742,85883.0,85863.0,0.01022235]
[1763995619168,0.0003742,85883.0,85872.0,0.10433271]
[1763995619377,0.0003742,85883.0,85873.0,0.0078]
[1763995619582,0.0003742,85883.0,85874.0,0.0078]
[1763995619786,0.0003742,85883.0,85875.0,0.0078]
[1763995620612,0.0003742,85883.0,85847.0,0.6446202]
[1763995620613,0.323,85881.0,85847.0,0.4]
[1763995620818,0.323,85879.0,85830.0,0.10433271]
[1763995621031,0.323,85876.0,85831.0,0.01823327]
[1763995621240,0.323,85869.0,85831.0,0.01823327]
[1763995621452,2.0,85865.0,85820.0,0.01313132]
[1763995621740,0.323,85849.0,85821.0,0.0078]
[1763995621955,0.323,85849.0,85820.0,0.0078]
[1763995621956,0.323,85835.0,85820.0,0.0078]
[1763995622222,0.323,85820.0,85772.0,0.10433271]
[1763995622480,0.323,85822.0,85774.0,2.01165854]
[1763995622684,0.323,85822.0,85776.0,2.0]
[1763995622908,0.323,85820.0,85792.0,0.10433271]
[1763995623119,0.323,85820.0,85793.0,0.04154519]
[1763995623543,0.07007,85838.0,85805.0,0.10433271]
[1763995623769,0.07007,85856.0,85806.0,0.02330839]
[1763995624011,0.10433271,85848.0,85820.0,0.10433271]
[1763995624182,0.10433271,85848.0,85821.0,0.01823327]
[1763995624389,0.323,85834.0,85822.0,0.0078]
[1763995624593,0.323,85834.0,85822.0,0.00039076]
[1763995624810,0.07007,85875.0,85823.0,0.0078]
[1763995625020,0.73496963,85860.0,85824.0,0.02412396]
[1763995625226,0.01539093,85859.0,85825.0,0.02330323]
[1763995625441,0.01539093,85867.0,85823.0,0.0078]
[1763995625665,2.0,85881.0,85824.0,0.05210249]
[1763995625901,2.0,85881.0,85822.0,0.00039076]
[1763995625902,0.10433271,85856.0,85825.0,0.00602933]
[1763995626147,0.73496963,85860.0,85837.0,0.10433271]
[1763995626148,0.001,85860.0,85837.0,0.10433271]
[1763995626418,0.001,85860.0,85838.0,0.01269674]
[1763995626638,2.0,85875.0,85837.0,0.10433271]